bitfinex/quotes_SOLUSD_20220227
["timestamp","ask_amount","ask_price","bid_price","bid_amount"]
[1645953533012,1.66525256,89.669,89.554,2.88974951]
[1645953533212,7.0,89.674,89.555,4.463]
[1645953533414,1.66867362,89.678,89.571,111.9]
[1645953533613,1.4014532,89.703,89.573,111.9]
[1645953533811,7.0,89.702,89.573,111.9]
[1645953534012,7.0,89.702,89.581,111.9]
[1645953534213,1.4014532,89.703,89.591,111.9]
[1645953534412,1.4014532,89.703,89.593,111.9]
[1645953534611,1.4014532,89.703,89.595,111.9]
[1645953534813,54.1788,89.725,89.597,111.9]
[1645953535012,1.73672542,89.718,89.611,111.9]
[1645953535212,7.0,89.737,89.631,111.9]
[1645953535413,7.0,89.737,89.632,2.67152536]
[1645953535615,7.0,89.737,89.633,4.46]
[1645953535813,51.80646493,89.736,89.633,4.46]
[1645953536014,1.81374356,89.735,89.635,2.93723155]
[1645953536213,7.0,89.747,89.64,13.39]
[1645953536414,7.0,89.747,89.641,7.21399255]
[1645953537016,7.0,89.747,89.641,9.96078176]
[1645953537216,46.09182527,89.746,89.641,9.96078176]
[1645953537417,1.64122279,89.745,89.641,9.96078176]
[1645953537616,1.64122279,89.745,89.642,111.9]
[1645953537817,1.64122279,89.745,89.643,4.458]
[1645953538017,1.64122279,89.745,89.644,111.9]
[1645953538216,1.64122279,89.745,89.646,111.9]
[1645953538417,1.64122279,89.745,89.647,4.458]
[1645953538623,1.64122279,89.745,89.646,111.9]
[1645953538822,1.64122279,89.745,89.66,13.39]
[1645953539021,1.72557278,89.765,89.66,13.39]
[1645953539524,7.0,89.757,89.661,2.74678921]
[1645953539723,59.81729943,89.764,89.661,5.01407865]
[1645953540024,1.48402123,89.763,89.662,2.75536251]
[1645953540229,1.48402123,89.763,89.662,5.50215172]
[1645953540424,1.48402123,89.763,89.663,4.458]
[1645953540625,1.48402123,89.763,89.664,111.9]
[1645953540825,1.48402123,89.763,89.666,111.9]
[1645953541028,1.48402123,89.763,89.668,111.9]
[1645953541425,1.48402123,89.763,89.665,2.74678921]
[1645953541426,1.48402123,89.763,89.666,4.458]
[1645953541627,23.5771,89.78,89.668,2.74678921]
[1645953541829,1.44279572,89.779,89.671,112.4]
[1645953542129,1.39299823,89.789,89.673,112.4]
[1645953542326,79.1158,89.797,89.675,112.4]
[1645953542529,49.10856375,89.795,89.678,2.26260036]
[1645953542726,49.10856375,89.795,89.681,112.4]
[1645953542926,1.86612533,89.794,89.682,4.457]
[1645953543126,4.61291454,89.794,89.682,2.74678921]
[1645953543327,7.0,89.792,89.682,5.7115265]
[1645953543731,2.74678921,89.791,89.681,112.4]
[1645953543931,2.74678921,89.791,89.67,2.32111495]
[1645953543932,13.39,89.79,89.671,4.457]
[1645953544127,16.7275,89.77,89.683,2.74678921]
[1645953544327,51.91243456,89.769,89.661,3.02383935]
[1645953544527,1.5008116,89.768,89.662,2.66547796]
[1645953544729,1.5008116,89.768,89.663,4.458]
[1645953544927,1.5008116,89.768,89.664,112.4]
[1645953545129,1.5008116,89.768,89.666,112.4]
[1645953545327,1.5008116,89.768,89.67,13.39]
[1645953545527,1.5008116,89.768,89.67,30.1121]
[1645953545726,1.5008116,89.768,89.671,2.5180071]
[1645953545928,1.5008116,89.768,89.671,5.26479631]
[1645953546143,1.5008116,89.768,89.672,2.74678921]
[1645953546341,1.5008116,89.768,89.672,5.45724455]
[1645953546641,86.1158,89.797,89.681,112.4]
[1645953546841,7.0,89.797,89.691,112.4]
[1645953547041,7.0,89.797,89.692,4.457]
[1645953547243,7.0,89.797,89.694,3.10777214]
[1645953547841,2.74678921,89.796,89.693,2.74678921]
[1645953548043,7.0,89.797,89.693,2.74678921]
[1645953548243,7.0,89.795,89.693,2.74678921]
[1645953548440,7.0,89.795,89.694,4.457]
[1645953548641,7.0,89.795,89.693,2.74678921]
[1645953548842,56.99818529,89.8,89.695,2.74678921]
[1645953549042,1.62161864,89.799,89.695,2.74678921]
[1645953549245,4.36840785,89.799,89.695,2.74678921]
[1645953549443,2.74678921,89.798,89.677,2.74678921]
[1645953549643,27.68027967,89.798,89.677,2.74678921]
[1645953549846,6.28129125,89.797,89.665,112.4]
[1645953550045,7.0,89.795,89.667,112.4]
[1645953550246,26.81681757,89.797,89.668,119.30387628]
[1645953550548,7.0,89.787,89.669,2.79064396]
[1645953550746,56.89696278,89.786,89.669,2.79064396]
[1645953550945,56.89696278,89.786,89.67,17.847]
[1645953551146,1.44018044,89.785,89.671,114.78979501]
[1645953551348,1.44018044,89.785,89.672,4.457]
[1645953551548,1.44018044,89.785,89.672,7.02168254]
[1645953551747,1.44018044,89.785,89.673,2.74678921]
[1645953552352,1.44018044,89.785,89.674,4.457]
[1645953552752,1.44018044,89.785,89.675,2.74678921]
[1645953552950,8.44018044,89.785,89.675,2.74678921]
[1645953553449,8.44018044,89.785,89.676,4.457]
[1645953553850,8.56603778,89.785,89.681,112.4]
[1645953554051,1.56603778,89.785,89.683,112.4]
[1645953554251,1.56603778,89.785,89.684,2.38222062]
[1645953554651,1.56603778,89.785,89.684,5.12900983]
[1645953554853,1.56603778,89.785,89.685,2.74678921]
[1645953555252,1.56603778,89.785,89.686,4.457]
[1645953555752,1.56603778,89.785,89.687,2.74678921]
[1645953557051,2.74678921,89.784,89.682,4.457]
[1645953557252,7.20378921,89.784,89.682,4.457]
[1645953557455,7.0,89.765,89.671,2.74678921]
[1645953557652,55.12353486,89.764,89.671,2.74678921]
[1645953557854,1.45208877,89.763,89.651,6.91487524]
[1645953558056,13.39,89.76,89.647,2.74678921]
[1645953558254,7.0,89.745,89.645,2.60642639]
[1645953558454,44.29866888,89.744,89.645,2.60642639]
[1645953558654,1.42709789,89.743,89.645,2.60642639]
[1645953560557,7.0,89.742,89.645,2.60642639]
[1645953561056,7.0,89.742,89.636,24.8087]
[1645953561057,2.74678921,89.741,89.607,3.07059716]
[1645953561256,2.74678921,89.741,89.6,13.39]
[1645953561257,54.61849444,89.729,89.592,2.90795629]
[1645953561456,4.46,89.728,89.592,2.90795629]
[1645953561656,17.34381807,89.728,89.592,2.90795629]
[1645953561858,3.566876,89.727,89.592,2.90795629]
[1645953562056,4.46,89.726,89.592,115.30795629]
[1645953562258,7.0,89.707,89.593,3.115174]
[1645953562458,16.7405,89.7,89.593,3.115174]
[1645953562661,1.48707874,89.699,89.593,3.115174]
[1645953565065,113.88707874,89.699,89.593,3.115174]
[1645953565264,113.88707874,89.699,89.565,16.4131]
[1645953565265,171.41710504,89.689,89.565,16.4131]
[1645953565463,13.39,89.68,89.574,2.74678921]
[1645953565662,1.42561812,89.679,89.574,2.74678921]
[1645953565863,4.462,89.678,89.574,2.74678921]
[1645953566263,4.17240733,89.679,89.574,2.74678921]
[1645953566664,4.462,89.678,89.574,2.74678921]
[1645953566863,1.42561812,89.679,89.574,2.74678921]
[1645953567668,13.39,89.68,89.574,2.74678921]
[1645953567968,7.0,89.687,89.575,112.4]
[1645953568165,7.0,89.687,89.576,2.63157456]
[1645953568365,7.0,89.687,89.582,2.55284021]
[1645953568766,4.462,89.723,89.591,112.4]
[1645953568968,46.8128,89.728,89.602,3.00902984]
[1645953569167,46.8128,89.728,89.612,2.849833]
[1645953569372,46.8128,89.728,89.622,3.0461689]
[1645953569569,60.38342558,89.727,89.622,3.0461689]
[1645953569770,60.38342558,89.727,89.623,2.74678921]
[1645953570170,46.8128,89.728,89.631,112.4]
[1645953570370,7.0,89.742,89.632,2.44422369]
[1645953570572,7.0,89.742,89.632,5.1910129]
[1645953570769,7.0,89.742,89.633,2.74678921]
[1645953571170,54.01102166,89.741,89.633,2.74678921]
[1645953572596,7.0,89.742,89.633,2.74678921]
[1645953572896,7.0,89.752,89.653,112.4]
[1645953573099,7.0,89.752,89.633,2.74678921]
[1645953573100,1.863487,89.836,89.672,5.0]
[1645953573295,7.0,89.792,89.681,112.4]
[1645953573498,7.0,89.792,89.682,2.88187222]
[1645953573697,47.63108248,89.791,89.682,32.72299882]
[1645953573898,1.42629827,89.79,89.683,2.28624864]
[1645953574098,4.457,89.789,89.684,3.11287512]
[1645953574298,1.42629827,89.79,89.684,3.11287512]
[1645953574499,7.0,89.782,89.684,3.11287512]
[1645953574701,7.0,89.777,89.685,2.74678921]
[1645953574898,45.35810541,89.776,89.685,2.74678921]
[1645953575098,1.7578699,89.775,89.685,2.74678921]
[1645953577206,1.7578699,89.775,89.681,47.6722]
[1645953577405,1.7578699,89.775,89.663,2.80684532]
[1645953577605,1.7578699,89.775,89.654,15.54806992]
[1645953577606,1.7578699,89.775,89.656,25.15845824]
[1645953578005,1.7578699,89.775,89.657,2.74678921]
[1645953578210,7.0,89.767,89.657,2.74678921]
[1645953578405,7.0,89.762,89.657,2.74678921]
[1645953578607,59.11363761,89.761,89.657,5.54147701]
[1645953578806,7.0,89.757,89.657,5.54147701]
[1645953579006,7.0,89.757,89.658,2.74678921]
[1645953580306,7.0,89.757,89.658,32.58791581]
[1645953580507,7.0,89.757,89.659,2.5076399]
[1645953580712,7.0,89.757,89.659,5.25442911]
[1645953581107,7.0,89.757,89.66,2.74678921]
[1645953581309,7.0,89.755,89.66,2.74678921]
[1645953582309,7.0,89.755,89.66,59.13790127]
[1645953582511,7.0,89.755,89.661,2.32530718]
[1645953582709,7.0,89.755,89.661,5.07209639]
[1645953582910,7.0,89.755,89.663,2.83318609]
[1645953583314,7.0,89.755,89.664,5.08401039]
[1645953583712,7.0,89.755,89.666,2.94208865]
[1645953584012,1.43485176,89.76,89.67,13.39]
[1645953585214,59.11363761,89.761,89.671,160.53598573]
[1645953585412,59.11363761,89.761,89.672,2.70263555]
[1645953585611,59.11363761,89.761,89.673,112.4]
[1645953585811,59.11363761,89.761,89.674,3.1222014]
[1645953586613,59.11363761,89.761,89.673,18.29485913]
[1645953586915,1.64056836,89.76,89.654,2.74678921]
[1645953587113,1.64056836,89.76,89.647,2.56925242]
[1645953587312,15.03056836,89.76,89.642,2.76748832]
[1645953587514,6.16700789,89.759,89.642,2.76748832]
[1645953587817,45.18619724,89.741,89.642,2.76748832]
[1645953588017,1.38241788,89.74,89.642,2.76748832]
[1645953588220,6.06571262,89.739,89.621,40.51886992]
[1645953588415,1.42862474,89.728,89.621,24.9708]
[1645953588617,45.36776424,89.726,89.621,24.9708]
[1645953588816,1.77005315,89.724,89.592,23.9006]
[1645953589015,52.57561158,89.704,89.593,115.31466374]
[1645953589316,1.83783358,89.703,89.594,2.27731094]
[1645953589515,52.57561158,89.704,89.595,112.4]
[1645953589715,1.52709445,89.703,89.596,2.74304215]
[1645953589917,52.57561158,89.704,89.6,13.39]
[1645953590116,1.71395709,89.703,89.6,13.39]
[1645953590315,1.71395709,89.703,89.601,2.74678921]
[1645953590516,1.71395709,89.703,89.601,5.12177869]
[1645953590917,52.57561158,89.704,89.602,2.74678921]
[1645953591125,1.56639981,89.703,89.602,2.74678921]
[1645953591717,1.56639981,89.703,89.603,25.9797088]
[1645953591916,1.56639981,89.703,89.604,2.33104198]
[1645953592117,1.56639981,89.703,89.604,5.07783119]
[1645953592316,1.56639981,89.703,89.605,2.74678921]
[1645953592716,1.56639981,89.703,89.605,5.3183884]
[1645953593117,1.56639981,89.703,89.606,2.74678921]
[1645953594118,52.57561158,89.704,89.607,112.4]
[1645953594318,1.67513822,89.703,89.606,25.9797088]
[1645953594517,1.67513822,89.703,89.594,2.74678921]
[1645953594720,1.67513822,89.703,89.597,2.47656732]
[1645953594918,7.0,89.7,89.597,2.47656732]
[1645953595121,7.0,89.7,89.597,5.22335653]
[1645953595519,1.73496287,89.699,89.597,5.22335653]
[1645953598224,52.57561158,89.704,89.598,2.83489885]
[1645953598423,1.66916084,89.703,89.598,2.83489885]
[1645953598623,1.66916084,89.703,89.6,13.39]
[1645953598826,1.66916084,89.703,89.6,16.33949814]
[1645953599024,1.66916084,89.703,89.601,42.8272346]
[1645953599226,1.66916084,89.703,89.602,2.69111234]
[1645953599523,1.66916084,89.703,89.603,2.56137619]
[1645953599723,1.66916084,89.703,89.603,19.40188199]
[1645953599926,1.66916084,89.703,89.602,25.9797088]
[1645953599927,1.66916084,89.703,89.604,19.46530962]
[1645953600223,52.57561158,89.704,89.606,2.72790431]
[1645953600425,1.74835708,89.703,89.606,2.72790431]
[1645953600625,1.74835708,89.703,89.624,112.2]
[1645953600824,52.57561158,89.704,89.624,112.2]
[1645953601328,1.7857356,89.703,89.624,112.2]
[1645953601531,52.57561158,89.704,89.624,112.2]
[1645953601726,7.0,89.717,89.625,114.79376544]
[1645953601926,7.0,89.717,89.626,2.98155571]
[1645953602124,7.0,89.717,89.626,19.82206151]
[1645953602325,7.0,89.717,89.627,19.69138674]
[1645953602525,7.0,89.717,89.628,2.37817492]
[1645953602726,54.97425373,89.716,89.628,16.47189151]
[1645953603125,54.97425373,89.716,89.627,2.74678921]
[1645953603126,1.81621298,89.715,89.627,2.74678921]
[1645953603325,1.81621298,89.715,89.624,112.2]
[1645953603528,4.46,89.714,89.624,112.2]
[1645953604526,7.0,89.707,89.624,112.2]
[1645953605128,1.7196733,89.709,89.624,112.2]
[1645953605328,7.0,89.707,89.624,112.2]
[1645953606929,1.52217617,89.715,89.625,2.74629176]
[1645953607128,1.52217617,89.715,89.625,12.40308097]
[1645953607330,1.52217617,89.715,89.626,2.74678921]
[1645953607731,54.97425373,89.716,89.626,2.74678921]
[1645953607930,54.97425373,89.716,89.627,14.09371659]
[1645953608130,54.97425373,89.716,89.627,16.46630788]
[1645953608331,54.97425373,89.716,89.628,25.9797088]
[1645953608530,54.97425373,89.716,89.629,2.26669754]
[1645953608730,1.39713548,89.731,89.629,16.36041413]
[1645953608930,1.39713548,89.731,89.63,168.6102146]
[1645953609132,1.39713548,89.731,89.631,2.61827578]
[1645953609332,1.39713548,89.731,89.631,45.43849038]
[1645953609530,1.39713548,89.731,89.632,19.39962695]
[1645953609732,54.4628,89.732,89.632,42.8202146]
[1645953610036,1.37846634,89.758,89.63,13.39]
[1645953610037,1.37846634,89.758,89.634,112.4]
[1645953610231,7.0,89.747,89.636,112.4]
[1645953610432,7.0,89.747,89.641,112.4]
[1645953610637,7.0,89.747,89.642,2.59814588]
[1645953611144,8.54012528,89.745,89.643,16.65657728]
[1645953611333,8.54012528,89.745,89.643,19.40336649]
[1645953611532,8.54012528,89.745,89.644,16.45434388]
[1645953611737,8.54012528,89.745,89.645,2.6682407]
[1645953611934,8.54012528,89.745,89.645,19.5087465]
[1645953612134,8.54012528,89.745,89.646,19.63128449]
[1645953612340,8.54012528,89.745,89.647,2.98967639]
[1645953612537,8.54012528,89.745,89.647,19.83018219]
[1645953612735,8.54012528,89.745,89.648,16.8405058]
[1645953612935,8.54012528,89.745,89.648,45.67123685]
[1645953613135,8.54012528,89.745,89.649,19.21828905]
[1645953613337,8.54012528,89.745,89.65,2.30648168]
[1645953613556,8.54012528,89.745,89.65,45.12669628]
[1645953613755,8.54012528,89.745,89.651,5.14180282]
[1645953614155,8.54012528,89.745,89.652,2.74678921]
[1645953614359,8.54012528,89.745,89.652,5.20135259]
[1645953614757,8.54012528,89.745,89.653,2.74678921]
[1645953615157,8.54012528,89.745,89.654,25.9797088]
[1645953615558,1.54012528,89.745,89.655,2.74678921]
[1645953615759,8.54012528,89.745,89.655,5.39433265]
[1645953616160,8.54012528,89.745,89.656,2.74678921]
[1645953616962,1.54012528,89.745,89.656,2.74678921]
[1645953617159,7.0,89.742,89.656,2.74678921]
[1645953617359,1.54012528,89.745,89.656,2.74678921]
[1645953617562,7.0,89.735,89.639,16.8326]
[1645953617859,59.80321709,89.731,89.639,16.8326]
[1645953618059,1.75322052,89.73,89.639,16.8326]
[1645953618259,1.75322052,89.73,89.631,2.74678921]
[1645953618260,16.7386,89.72,89.624,112.2]
[1645953618459,118.31565632,89.719,89.624,112.2]
[1645953618660,1.85069764,89.718,89.624,112.2]
[1645953618860,44.92080735,89.691,89.624,112.2]
[1645953619061,1.8296275,89.69,89.624,112.2]
[1645953619662,7.0,89.687,89.624,112.2]
[1645953620060,1.8296275,89.69,89.624,112.2]
[1645953620861,44.92080735,89.691,89.624,112.2]
[1645953621762,4.461,89.71,89.625,2.25713501]
[1645953621967,47.87670928,89.716,89.625,2.25713501]
[1645953622165,47.87670928,89.716,89.626,2.74678921]
[1645953622362,47.87670928,89.716,89.626,5.37595611]
[1645953622565,47.87670928,89.716,89.627,25.9797088]
[1645953622763,57.46691626,89.715,89.628,2.68908659]
[1645953622963,57.46691626,89.715,89.628,5.4358758]
[1645953623162,57.46691626,89.715,89.629,57.61500873]
[1645953623365,57.46691626,89.715,89.63,3.05724649]
[1645953623563,57.46691626,89.715,89.63,60.36179794]
[1645953623763,57.46691626,89.715,89.631,2.26443164]
[1645953623964,57.46691626,89.715,89.631,32.58117632]
[1645953624162,46.1944,89.716,89.632,5.09993112]
[1645953624363,46.1944,89.716,89.633,112.4]
[1645953624566,46.1944,89.716,89.633,172.76179794]
[1645953624765,46.1944,89.716,89.634,5.07930016]
[1645953624963,46.1944,89.716,89.634,172.76179794]
[1645953625169,46.1944,89.716,89.635,60.36179794]
[1645953625363,46.1944,89.716,89.64,16.07]
[1645953625566,46.1944,89.716,89.641,2.77959822]
[1645953625764,46.1944,89.716,89.641,63.14139616]
[1645953625967,46.1944,89.716,89.641,60.36179794]
[1645953626164,46.1944,89.716,89.642,5.40958627]
[1645953626365,46.1944,89.716,89.642,5.15597757]
[1645953626565,46.1944,89.716,89.643,2.74678921]
[1645953627169,46.1944,89.716,89.643,30.31674468]
[1645953627368,46.1944,89.716,89.644,3.05958782]
[1645953627567,46.1944,89.716,89.644,5.80637703]
[1645953627769,46.1944,89.716,89.645,27.56995547]
[1645953627971,46.1944,89.716,89.645,30.31674468]
[1645953628171,46.1944,89.716,89.646,2.74678921]
[1645953629072,46.1944,89.716,89.646,5.65884242]
[1645953629272,16.7332,89.75,89.646,5.65884242]
[1645953629273,1.73535743,89.769,89.646,5.65884242]
[1645953629474,7.0,89.747,89.661,112.4]
[1645953629684,3.29825822,89.747,89.717,2.74678921]
[1645953629873,1.78285385,89.832,89.718,95.0]
[1645953630073,10.05558107,89.833,89.721,112.4]
[1645953630271,57.76899726,89.838,89.722,3.08072694]
[1645953630473,1.61942748,89.846,89.74,16.7113]
[1645953630772,1.76703434,89.867,89.751,3.06742025]
[1645953631072,1.76703434,89.867,89.76,16.07]
[1645953631270,1.76703434,89.867,89.77,16.07]
[1645953631473,57.30609943,89.866,89.77,16.07]
[1645953631670,1.72953589,89.865,89.77,16.07]
[1645953631872,112.4,89.864,89.77,16.07]
[1645953632073,57.30609943,89.866,89.721,2.57671024]
[1645953632074,112.4,89.862,89.721,2.57671024]
[1645953632276,112.4,89.841,89.72,16.07]
[1645953632474,4.455,89.84,89.719,2.74678921]
[1645953632672,6.29087398,89.84,89.72,16.07]
[1645953632874,6.29087398,89.84,89.721,5.0847335]
[1645953633075,8.83587398,89.84,89.723,112.4]
[1645953633272,8.83587398,89.84,89.725,112.4]
[1645953633471,8.83587398,89.84,89.726,2.77853602]
[1645953633672,1.83587398,89.84,89.74,16.07]
[1645953633873,1.83587398,89.84,89.741,2.54613649]
[1645953634075,1.83587398,89.84,89.742,4.454]
[1645953634274,1.83587398,89.84,89.741,5.2929257]
[1645953634675,1.83587398,89.84,89.742,2.74678921]
[1645953635476,7.0,89.832,89.742,2.74678921]
[1645953636176,7.0,89.832,89.741,2.9309143]
[1645953636777,7.0,89.832,89.74,16.07]
[1645953636978,119.4,89.832,89.72,16.07]
[1645953637277,4.455,89.831,89.723,2.55259151]
[1645953637488,7.0,89.825,89.723,2.55259151]
[1645953637679,7.0,89.822,89.723,2.55259151]
[1645953637877,7.0,89.822,89.73,16.07]
[1645953638077,7.0,89.82,89.731,2.62243599]
[1645953638677,7.0,89.82,89.732,2.74678921]
[1645953639077,1.41431846,89.823,89.732,2.74678921]
[1645953639279,7.0,89.817,89.73,16.07]
[1645953639479,7.0,89.815,89.73,16.07]
[1645953639879,7.0,89.815,89.731,2.55257082]
[1645953640182,7.0,89.815,89.726,3.10968011]
[1645953640378,7.0,89.815,89.73,13.37]
[1645953640585,7.0,89.815,89.731,112.4]
[1645953640779,48.78895008,89.824,89.732,2.61450521]
[1645953640979,48.78895008,89.824,89.733,116.855]
[1645953641180,48.78895008,89.824,89.734,2.46398995]
[1645953641379,48.78895008,89.824,89.734,5.21077916]
[1645953641580,48.78895008,89.824,89.735,112.4]
[1645953641780,48.78895008,89.824,89.736,2.36910645]
[1645953641980,48.78895008,89.824,89.741,112.4]
[1645953642180,48.78895008,89.824,89.742,2.53003601]
[1645953642381,1.41638385,89.859,89.743,4.455]
[1645953642586,7.0,89.857,89.745,2.80825061]
[1645953642787,1.36105202,89.866,89.76,13.37]
[1645953642982,1.36105202,89.866,89.762,2.54998561]
[1645953643382,54.49146114,89.865,89.763,2.74678921]
[1645953643592,1.63926765,89.864,89.763,2.74678921]
[1645953643783,1.83878966,89.859,89.761,22.8366]
[1645953643992,7.0,89.857,89.761,22.8366]
[1645953644186,1.83878966,89.859,89.761,22.8366]
[1645953644385,1.83878966,89.859,89.762,2.41664771]
[1645953644685,1.48322461,89.864,89.762,13.71343692]
[1645953645387,1.48322461,89.864,89.763,2.74678921]
[1645953645785,1.48322461,89.864,89.764,2.61959166]
[1645953646185,1.48322461,89.864,89.765,2.74678921]
[1645953646986,1.48322461,89.864,89.77,13.37]
[1645953647789,7.0,89.862,89.77,13.37]
[1645953647994,7.0,89.86,89.77,13.37]
[1645953648190,7.0,89.86,89.762,15.30222129]
[1645953648389,7.0,89.855,89.76,13.37]
[1645953648592,7.0,89.855,89.748,15.30222129]
[1645953648790,7.0,89.852,89.748,15.30222129]
[1645953648991,51.29315457,89.851,89.748,15.30222129]
[1645953649191,8.36112755,89.85,89.748,15.30222129]
[1645953649590,18.07622755,89.85,89.748,15.30222129]
[1645953649791,1.69708364,89.849,89.748,15.30222129]
[1645953649992,7.0,89.84,89.748,15.30222129]
[1645953650192,7.0,89.832,89.748,15.30222129]
[1645953650392,59.25646653,89.831,89.748,15.30222129]
[1645953650595,1.7408137,89.83,89.748,15.30222129]
[1645953650793,1.7408137,89.83,89.749,2.74678921]
[1645953650992,8.7408137,89.83,89.749,2.74678921]
[1645953651393,1.7408137,89.83,89.749,2.74678921]
[1645953651592,7.0,89.827,89.749,2.74678921]
[1645953651995,59.25646653,89.831,89.75,13.37]
[1645953651996,1.57631869,89.83,89.75,13.37]
[1645953652193,59.25646653,89.831,89.75,39.89995547]
[1645953652408,59.25646653,89.831,89.751,18.0490105]
[1645953652592,59.25646653,89.831,89.751,44.57896597]
[1645953652793,59.25646653,89.831,89.753,2.52148244]
[1645953653196,59.25646653,89.831,89.754,18.0490105]
[1645953653394,59.25646653,89.831,89.755,2.37508749]
[1645953653597,59.25646653,89.831,89.756,3.03132232]
[1645953653795,59.25646653,89.831,89.76,13.37]
[1645953655720,59.25646653,89.831,89.756,15.30222129]
[1645953655917,1.52142854,89.83,89.756,15.30222129]
[1645953657519,59.25646653,89.831,89.756,15.30222129]
[1645953658721,1.66305322,89.83,89.756,15.30222129]
[1645953658923,1.66305322,89.83,89.745,2.74678921]
[1645953659126,7.0,89.825,89.745,2.74678921]
[1645953659328,7.0,89.825,89.745,18.0490105]
[1645953659823,1.66305322,89.83,89.745,18.0490105]
[1645953660024,7.0,89.822,89.745,18.0490105]
[1645953660323,7.0,89.822,89.745,13.99387787]
[1645953660523,7.0,89.822,89.743,23.3725]
[1645953660725,7.0,89.82,89.743,23.3725]
[1645953663732,7.0,89.82,89.729,2.74678921]
[1645953663929,4.455,89.819,89.71,25.1094888]
[1645953664131,6.03086147,89.819,89.692,50.10416922]
[1645953664330,27.26961908,89.818,89.692,47.0609]
[1645953664531,7.0,89.807,89.692,47.0609]
[1645953664731,16.724,89.8,89.692,47.0609]
[1645953665032,1.77475976,89.798,89.692,47.0609]
[1645953665230,7.0,89.767,89.692,47.0609]
[1645953665432,54.93597007,89.766,89.692,47.0609]
[1645953665632,1.8715145,89.765,89.692,47.0609]
[1645953668938,7.0,89.762,89.692,47.0609]
[1645953669136,7.0,89.762,89.665,23.8418]
[1645953669335,7.0,89.76,89.665,23.8418]
[1645953669935,54.93597007,89.766,89.666,112.4]
[1645953670135,54.93597007,89.766,89.667,2.358256]
[1645953670337,54.93597007,89.766,89.668,112.4]
[1645953670537,54.93597007,89.766,89.671,112.4]
[1645953670736,54.93597007,89.766,89.672,3.10387856]
[1645953672140,7.0,89.765,89.672,3.10387856]
[1645953672939,8.3973282,89.765,89.672,3.10387856]
[1645953673142,8.3973282,89.765,89.67,13.37]
[1645953673340,8.3973282,89.765,89.665,23.8418]
[1645953673341,1.3973282,89.765,89.666,2.51507221]
[1645953673560,7.0,89.762,89.666,2.51507221]
[1645953674443,1.3973282,89.765,89.666,2.51507221]
[1645953674843,7.0,89.75,89.666,2.51507221]
[1645953675044,113.7973282,89.765,89.662,47.1395]
[1645953675244,42.90059544,89.749,89.631,2.8410097]
[1645953675444,7.0,89.74,89.632,47.9972]
[1645953675644,16.7355,89.74,89.632,47.9972]
[1645953675845,114.46674494,89.739,89.632,47.9972]
[1645953676044,7.0,89.715,89.632,47.9972]
[1645953676346,50.80738463,89.729,89.632,47.9972]
[1645953676545,4.46,89.728,89.632,47.9972]
[1645953676845,16.7389,89.72,89.632,47.9972]
[1645953677047,118.2399047,89.719,89.62,112.2]
[1645953677244,112.4,89.707,89.62,112.2]
[1645953677446,1.37133897,89.706,89.62,112.2]
[1645953677844,4.11812818,89.706,89.62,112.2]
[1645953678043,7.0,89.687,89.62,112.2]
[1645953678246,52.52675315,89.686,89.62,112.2]
[1645953678445,1.35236075,89.685,89.62,112.2]
[1645953679245,7.0,89.682,89.62,112.2]
[1645953679445,1.35236075,89.685,89.62,112.2]
[1645953679647,7.0,89.677,89.62,112.2]
[1645953679850,1.35236075,89.685,89.62,112.2]
[1645953680047,7.0,89.672,89.62,112.2]
[1645953680245,51.79397759,89.671,89.62,112.2]
[1645953680446,7.0,89.669,89.62,112.2]
[1645953683950,1.4110969,89.67,89.584,158.6254]
[1645953684147,7.0,89.669,89.584,158.6254]
[1645953684348,14.7810969,89.67,89.584,112.2]
[1645953684550,7.0,89.652,89.55,44.17235161]
[1645953684748,58.73042553,89.651,89.556,2.47737874]
[1645953684949,1.85933418,89.65,89.556,2.47737874]
[1645953685348,58.73042553,89.651,89.557,2.74678921]
[1645953685550,58.73042553,89.651,89.56,13.37]
[1645953685948,58.73042553,89.651,89.562,112.4]
[1645953686149,58.73042553,89.651,89.563,2.57299951]